bitfinex/quotes_ETHUSD_20260108
["timestamp","ask_amount","ask_price","bid_price","bid_amount"]
[1767884556992,0.04070335,3071.0,3069.5,3.4256174]
[1767884556993,1.1981513,3071.0,3069.2,3.25807677]
[1767884557192,1.1981513,3070.8,3069.6,0.09443793]
[1767884557430,1.1981513,3070.8,3069.8,0.09443793]
[1767884557631,6.51232456,3071.1,3070.0,0.09443793]
[1767884557807,0.04070335,3071.0,3069.8,0.09443793]
[1767884558131,3.25595024,3071.3,3070.0,0.09443793]
[1767884558308,1.1991513,3071.4,3070.0,0.09443793]
[1767884558309,0.001,3071.4,3070.6,0.09443793]
[1767884558512,0.001,3071.4,3070.8,0.09443793]
[1767884558829,0.001,3071.4,3071.0,0.09443793]
[1767884559213,0.001,3071.4,3070.8,0.09443793]
[1767884559412,0.001,3071.4,3070.8,0.52387822]
[1767884559820,0.001,3071.4,3070.8,0.09443793]
[1767884560532,0.001,3071.4,3070.6,0.849]
[1767884560739,0.001,3071.4,3070.2,0.09443793]
[1767884560912,0.04169805,3071.4,3070.3,0.849]
[1767884561115,0.001,3071.4,3070.4,0.09443793]
[1767884561310,0.001,3071.4,3070.6,0.09443793]
[1767884561620,0.001,3071.4,3070.8,0.09443793]
[1767884561934,0.001,3071.4,3070.9,0.09443793]
[1767884562134,0.001,3072.1,3071.1,0.09443793]
[1767884562321,0.001,3072.1,3071.3,0.09443793]
[1767884562523,1.1991513,3072.1,3070.9,0.09443793]
[1767884562704,1.1991513,3072.1,3070.9,0.94343793]
[1767884562899,1.1991513,3072.1,3071.1,0.09443793]
[1767884563304,0.001,3072.1,3071.2,0.09443793]
[1767884563505,0.001,3072.1,3070.1,0.09443793]
[1767884563506,1.1981513,3072.0,3070.1,0.09443793]
[1767884563722,1.1981513,3071.8,3070.1,0.09443793]
[1767884563924,1.1981513,3071.6,3070.1,0.09443793]
[1767884564124,1.23884802,3071.5,3070.1,3.35162826]
[1767884564326,1.23884802,3071.5,3070.2,0.42006283]
[1767884564637,1.23884935,3071.4,3070.1,0.09443793]
[1767884564841,1.23884935,3071.4,3070.1,0.94343793]
[1767884565144,1.23884935,3071.4,3069.8,0.09443793]
[1767884565343,1.23884935,3071.4,3069.4,0.09443793]
[1767884565344,1.1981513,3071.2,3069.4,0.09443793]
[1767884565509,1.1981513,3071.0,3069.4,1.27868275]
[1767884565838,1.1981513,3070.8,3069.5,3.25776293]
[1767884566039,1.1981513,3070.8,3069.4,4.53660076]
[1767884566820,1.1981513,3070.8,3069.5,3.25785477]
[1767884567018,1.1981513,3070.8,3069.6,0.45365375]
[1767884567411,6.51317288,3070.7,3069.6,0.45365375]
[1767884568020,7.71132418,3070.7,3069.5,0.00840362]
[1767884568313,1.1981513,3070.6,3069.3,0.849]
[1767884568512,1.1981513,3070.6,3069.0,0.849]
[1767884568733,1.1981513,3070.6,3069.5,0.09443793]
[1767884568926,1.96928372,3070.6,3069.5,0.09443793]
[1767884569433,1.96928372,3070.6,3069.3,0.09443793]
[1767884569434,6.51359712,3070.5,3069.3,0.09443793]
[1767884569635,6.51359712,3070.5,3069.5,0.09443793]
[1767884569815,6.51359712,3070.5,3069.3,0.09443793]
[1767884570211,1.1981513,3070.4,3069.1,0.09443793]
[1767884570412,6.51359712,3070.5,3069.2,0.849]
[1767884570413,1.1981513,3070.2,3069.2,0.849]
[1767884570640,6.51359712,3070.5,3069.4,0.09443793]
[1767884570845,6.51359712,3070.5,3068.5,0.09443793]
[1767884570846,1.1981513,3070.4,3069.1,0.09443793]
[1767884571045,1.1981513,3070.2,3069.1,1.19372793]
[1767884571213,1.1981513,3070.2,3069.1,0.849]
[1767884571410,3.25722289,3070.1,3069.1,0.849]
[1767884571610,3.25722289,3070.1,3068.9,0.09443793]
[1767884571611,1.1981513,3070.0,3068.9,0.09443793]
[1767884571844,1.1981513,3070.0,3069.0,0.849]
[1767884572046,1.1981513,3070.0,3068.5,0.09443793]
[1767884572248,0.77125971,3069.9,3068.8,0.09443793]
[1767884572417,1.96941101,3069.9,3068.7,3.36149904]
[1767884573049,1.96941101,3069.9,3068.7,0.1028592]
[1767884573050,1.1981513,3069.8,3068.7,0.1028592]
[1767884573252,1.1981513,3069.8,3068.7,0.85742127]
[1767884573451,4.45577221,3069.8,3068.8,3.25859656]
[1767884573651,4.45577221,3069.8,3068.9,0.51446573]
[1767884574151,1.1981513,3069.7,3068.9,0.41160178]
[1767884574353,1.1981513,3069.7,3068.7,0.849]
[1767884574567,3.25722289,3070.1,3068.8,0.09443793]
[1767884574766,6.51444578,3070.1,3068.9,0.00842191]
[1767884575067,3.25722289,3070.1,3069.0,0.09443793]
[1767884575368,1.1981513,3070.7,3069.4,0.09443793]
[1767884575540,7.7115363,3070.6,3069.4,0.94343793]
[1767884575739,3.80329288,3071.6,3069.4,0.94343793]
[1767884575740,1.1981513,3071.7,3069.6,0.09443793]
[1767884575942,1.1981513,3071.5,3069.8,0.09443793]
[1767884576141,1.1981513,3071.5,3070.0,0.09443793]
[1767884576343,1.23884802,3071.5,3070.1,0.0083877]
[1767884576526,1.23884802,3071.5,3070.0,0.09443793]
[1767884576727,1.1981513,3071.1,3068.8,0.09443793]
[1767884576932,1.1981513,3070.6,3068.9,1.59592727]
[1767884577473,4.49529288,3070.7,3069.0,0.09443793]
[1767884577474,7.71217272,3070.3,3069.0,0.09443793]
[1767884577631,1.1981513,3070.2,3068.9,0.849]
[1767884577827,1.23886526,3070.2,3068.9,0.849]
[1767884578132,1.1981513,3070.1,3069.0,0.42019823]
[1767884578362,1.1981513,3070.1,3069.0,1.26919823]
[1767884578827,6.51402142,3070.3,3069.2,0.09443793]
[1767884579151,3.25701071,3070.3,3069.2,0.09443793]
[1767884579482,1.1981513,3070.5,3069.1,3.26668995]
[1767884579977,1.1981513,3070.5,3069.1,0.00841899]
[1767884579978,1.23886128,3070.5,3069.1,0.00841899]
[1767884580193,1.23886128,3070.5,3067.9,0.09443793]
[1767884580194,1.1981513,3070.3,3069.0,0.849]
[1767884580344,1.1981513,3069.7,3068.1,3.26127173]
[1767884580535,1.1981513,3069.7,3069.3,0.002]
[1767884580878,1.1981513,3069.7,3068.2,0.00843693]
[1767884580879,1.1981513,3069.5,3068.2,0.00843693]
[1767884581182,0.48414442,3069.6,3068.1,0.002]
[1767884581183,1.1981513,3069.3,3068.1,0.002]
[1767884581535,1.1981513,3069.1,3068.1,0.002]
[1767884583670,1.07135774,3068.9,3068.1,0.002]
[1767884584581,0.852,3069.6,3068.1,0.002]
[1767884584582,3.25743509,3069.9,3068.1,0.09643793]
[1767884584792,1.07135774,3069.8,3068.3,0.09443793]
[1767884585084,1.14434908,3069.6,3068.1,0.002]
[1767884585237,1.14434908,3069.2,3068.1,0.002]
[1767884585695,1.14434908,3069.0,3068.1,0.002]
[1767884586984,1.14434908,3069.0,3067.7,0.002]
[1767884587162,17.5284296,3069.1,3067.3,0.002]
[1767884587163,1.14434908,3068.6,3067.3,0.002]
[1767884587475,1.14434908,3068.6,3067.3,0.09643793]
[1767884587778,6.51784258,3068.5,3067.3,0.09643793]
[1767884587941,7.66219166,3068.5,3067.3,0.09643793]
[1767884588367,7.66219166,3068.5,3067.7,0.09443793]
[1767884588368,1.14434908,3068.5,3067.7,0.09443793]
[1767884588684,4.40327037,3068.5,3067.8,0.09443793]
[1767884588847,1.14434908,3068.5,3067.8,0.09443793]
[1767884589050,1.14434908,3068.5,3067.5,0.09443793]
[1767884589237,1.14434908,3068.4,3067.3,0.002]
[1767884589438,1.14434908,3068.4,3067.3,0.94543793]
[1767884589649,6.51766882,3068.6,3067.3,0.94543793]
[1767884589650,3.25881509,3068.6,3067.7,0.09443793]
[1767884589878,6.51763018,3068.6,3067.7,0.09443793]
[1767884590067,3.25881509,3068.6,3067.7,0.09443793]
[1767884590272,4.40309873,3068.7,3067.9,0.09443793]
[1767884590445,4.11023255,3069.2,3068.4,0.09443793]
[1767884590446,1.14434908,3069.2,3068.4,0.09443793]
[1767884590646,1.14434908,3069.2,3068.1,0.09443793]
[1767884590647,1.14434908,3069.2,3067.9,0.09443793]
[1767884590883,1.14434908,3069.0,3068.0,0.94343793]
[1767884591702,3.25849652,3068.9,3068.0,0.849]
[1767884591870,3.29922772,3068.9,3067.9,0.94343793]
[1767884592055,4.40278834,3069.0,3067.9,0.94343793]
[1767884592391,4.40276982,3069.0,3068.1,0.09443793]
[1767884592688,4.40276982,3069.0,3068.2,0.33538489]
[1767884592853,1.14434908,3069.0,3068.2,0.33538489]
[1767884593056,7.66115518,3069.0,3068.2,0.33538489]
[1767884593282,4.40275213,3069.0,3068.1,0.09443793]
[1767884593765,4.40275213,3069.0,3067.9,0.94343793]
[1767884594061,1.14434908,3068.9,3068.0,0.849]
[1767884594254,0.001,3068.7,3068.0,0.849]
[1767884594455,0.001,3068.7,3068.1,0.09443793]
[1767884594654,0.001,3068.7,3068.1,3.35376318]
[1767884594875,0.001,3068.7,3068.2,0.42027632]
[1767884595071,0.001,3068.7,3068.1,0.849]
[1767884595472,0.001,3068.7,3068.2,0.09443793]
[1767884596455,0.001,3068.7,3068.1,0.849]
[1767884597179,0.001,3068.7,3068.2,3.35366857]
[1767884597391,0.001,3068.7,3068.4,0.09443793]
[1767884597574,0.001,3068.7,3068.4,0.34481065]
[1767884597757,0.001,3068.7,3068.1,0.849]
[1767884597964,0.001,3068.7,3067.3,3.26214294]
[1767884597965,1.14534908,3068.7,3067.3,3.26214294]
[1767884598175,1.14434908,3068.5,3067.3,0.94543793]
[1767884598586,1.14434908,3068.5,3067.4,3.26004251]
[1767884598863,1.14434908,3068.5,3067.3,0.94543793]
[1767884599067,1.14434908,3068.5,3067.3,0.09643793]
[1767884599393,1.14434908,3068.4,3067.2,0.002]
[1767884599994,1.14434908,3068.2,3067.2,0.002]
[1767884600168,1.14434908,3068.1,3067.2,0.002]
[1767884600837,1.14434908,3067.2,3066.0,0.002]
[1767884600999,1.14434908,3067.0,3066.0,0.002]
[1767884601295,1.34398399,3067.0,3066.0,0.002]
[1767884601696,1.14434908,3067.0,3066.0,0.002]
[1767884601992,3.26062147,3066.9,3066.0,0.002]
[1767884602208,7.66559202,3066.9,3066.0,0.002]
[1767884602500,1.14434908,3066.8,3066.0,0.002]
[1767884602994,1.14434908,3067.4,3066.1,0.09443793]
[1767884603199,1.14434908,3067.4,3066.2,0.00849364]
[1767884603399,1.14434908,3067.4,3066.1,1.13018971]
[1767884603764,1.14434908,3067.4,3066.1,0.09443793]
[1767884603963,3.26019626,3067.3,3066.3,0.09443793]
[1767884604186,1.14434908,3067.4,3066.5,0.09443793]
[1767884604396,1.14434908,3067.4,3066.4,0.00735532]
[1767884604593,3.25991123,3067.6,3066.5,0.75686628]
[1767884605166,1.14434908,3067.6,3066.6,0.10179277]
[1767884605769,1.14434908,3068.3,3066.8,0.09443793]
[1767884605971,1.18508957,3068.2,3066.9,0.09443793]
[1767884606272,9.7770825,3068.4,3067.1,0.09443793]
[1767884606273,4.40342316,3068.4,3067.1,0.09443793]
[1767884606583,4.40342316,3068.4,3067.2,0.0073534]
[1767884606584,1.14434908,3068.3,3067.2,0.0073534]
[1767884607372,1.14434908,3068.2,3066.5,0.66242835]
[1767884607592,1.14434908,3068.0,3066.4,0.85]
[1767884607874,0.001,3067.3,3066.5,0.09443793]
[1767884608274,0.001,3067.3,3066.7,0.09443793]
[1767884608707,0.001,3067.3,3066.8,0.33553469]
[1767884608908,1.14434908,3067.8,3066.9,0.09443793]
[1767884609278,1.14434908,3068.3,3067.3,0.09443793]
[1767884609815,1.14434908,3068.2,3067.0,0.85]
[1767884610013,1.14434908,3068.0,3066.8,0.33553469]
[1767884610213,0.04074182,3068.1,3066.6,3.26090894]
[1767884610214,1.14434908,3067.8,3066.6,0.00847705]
[1767884611193,1.14434908,3067.8,3066.7,3.26076669]
[1767884611374,1.14434908,3067.8,3066.8,3.26915991]
[1767884611977,1.14434908,3068.5,3066.9,0.09443793]
[1767884612182,1.09764273,3068.2,3066.9,3.35504694]
[1767884612375,1.09764273,3068.0,3067.0,0.33550469]
[1767884612575,1.09764273,3067.8,3066.5,0.09443793]
[1767884612780,1.09764273,3067.6,3066.4,0.85]
[1767884613011,1.09764273,3067.5,3066.3,0.002]
[1767884613211,0.853,3067.6,3066.3,0.002]
[1767884613212,1.09764273,3067.3,3066.3,0.002]
[1767884613992,1.13839518,3067.3,3066.3,0.002]
[1767884614305,1.09764273,3067.1,3066.3,0.002]
[1767884614514,0.853,3067.0,3066.3,0.002]
[1767884614812,1.09764273,3067.0,3066.3,0.002]
[1767884615886,1.09764273,3066.9,3066.3,0.002]
[1767884616215,7.61909831,3066.8,3066.3,0.002]
[1767884616589,1.09764273,3066.7,3066.3,0.002]
[1767884617218,3.26066807,3066.9,3066.3,0.002]
[1767884617619,4.35797961,3067.2,3066.3,0.002]
[1767884617822,3.25943997,3068.1,3066.3,0.002]
[1767884617823,1.09764273,3068.1,3066.4,0.09443793]
[1767884617983,1.09764273,3067.9,3066.5,0.39169623]
[1767884618311,16.29407545,3068.6,3066.3,0.09643793]
[1767884618312,1.09764273,3067.7,3066.3,3.26315721]
[1767884618480,1.09764273,3067.7,3066.3,6.61885463]
[1767884619403,1.09764273,3067.7,3066.3,3.35759514]
[1767884619608,1.13839119,3067.6,3066.3,3.26322561]
[1767884619817,1.13839119,3067.6,3066.4,0.41132256]
[1767884620217,7.61761013,3067.5,3066.4,0.41132256]
[1767884620420,7.61761013,3067.5,3066.6,0.002]
[1767884620421,1.09764273,3067.4,3066.6,0.002]
[1767884620625,2.18539496,3067.4,3066.6,0.002]
[1767884620920,3.259606,3067.9,3066.7,0.09443793]
[1767884621227,1.95064273,3068.3,3066.7,0.09443793]
[1767884621387,1.09764273,3068.1,3066.7,0.09443793]
[1767884621706,1.09764273,3068.1,3066.9,0.09443793]
[1767884622421,1.09764273,3068.1,3067.0,6.52103032]
[1767884622731,3.2590275,3068.4,3067.1,0.74654683]
[1767884623022,3.2590275,3068.4,3067.1,0.84098476]
[1767884623223,0.04073917,3068.3,3067.1,0.74654683]
[1767884623726,7.61569773,3068.4,3067.1,0.74654683]
[1767884624220,1.1383819,3068.3,3067.1,0.74654683]
[1767884624421,1.1383819,3068.3,3066.9,0.09443793]
[1767884624422,7.61654755,3068.0,3066.9,0.09443793]
[1767884624623,4.35709514,3068.0,3066.9,3.26061325]
[1767884624791,7.61654755,3068.0,3066.9,3.26061325]
[1767884625191,3.25938279,3068.1,3066.9,3.35503732]
[1767884625395,3.25921083,3068.3,3067.1,0.09443793]
[1767884625590,3.25921083,3068.3,3067.1,0.7654476]
[1767884625830,4.35670944,3068.4,3067.1,0.7654476]
[1767884626222,7.61577615,3068.4,3067.1,0.7654476]
[1767884626393,7.61577615,3068.4,3067.2,0.00846706]
[1767884626593,7.61577615,3068.4,3067.1,0.7654476]
[1767884626818,7.61577615,3068.4,3067.2,3.66287305]
[1767884627001,7.61577615,3068.4,3066.9,0.09443793]
[1767884627002,1.09764273,3068.3,3066.3,0.09643793]
[1767884627222,1.1383819,3068.3,3066.3,0.002]
[1767884628058,1.1383819,3068.3,3066.0,0.002]
[1767884628059,3.82052433,3067.5,3066.0,0.002]
[1767884628216,1.09764273,3067.3,3066.0,0.002]
[1767884628422,0.89375112,3067.4,3066.0,0.002]
[1767884628423,1.09764273,3067.1,3066.0,0.002]
[1767884628759,1.09764273,3066.9,3066.0,0.002]
[1767884628959,1.09764273,3066.7,3066.0,0.002]
[1767884629166,3.26051516,3067.0,3066.0,0.002]
[1767884629814,7.61867305,3067.0,3066.0,0.002]
[1767884630317,1.09764273,3066.9,3066.0,0.002]
[1767884630823,3.26072779,3066.8,3066.0,0.002]
[1767884631348,1.09764273,3066.9,3066.0,0.002]
[1767884631515,3.26030255,3067.2,3066.0,0.002]
[1767884631715,1.09764273,3067.1,3066.0,0.002]
[1767884631928,1.09764273,3067.1,3066.1,0.09443793]
[1767884632127,3.91496226,3068.4,3066.1,0.10293542]
[1767884632128,1.09764273,3067.6,3066.1,0.10293542]
[1767884632330,7.61748417,3067.6,3066.3,0.09443793]
[1767884632533,3.25945241,3068.0,3066.7,0.09443793]
[1767884632731,3.69516192,3068.0,3066.8,0.00847769]
[1767884633048,1.09764273,3068.1,3067.1,0.09443793]
[1767884633232,4.35659444,3068.5,3067.3,0.09443793]
[1767884633419,0.001,3068.7,3067.9,0.09443793]
[1767884633617,1.09764273,3069.6,3068.1,0.09443793]
[1767884633852,1.09764273,3069.6,3068.5,0.09443793]
[1767884634146,3.25732899,3070.0,3068.7,0.09443793]
[1767884634347,4.35489988,3070.1,3068.9,0.09443793]
[1767884634551,7.61215703,3070.1,3068.9,0.09443793]
[1767884634940,1.09764273,3070.1,3068.9,3.25840358]
[1767884635250,4.35489418,3070.1,3069.0,0.09443793]
[1767884635451,7.61214563,3070.1,3069.0,0.09443793]
[1767884635649,7.61214563,3070.1,3068.8,4.10853263]
[1767884635650,1.85885729,3070.0,3068.8,4.10853263]
[1767884635826,1.85885729,3070.0,3068.9,3.25848454]
[1767884636018,1.85885729,3070.0,3068.9,0.09443793]
[1767884636821,5.11622011,3070.0,3068.9,3.35292703]
[1767884637054,5.11622011,3070.0,3068.5,3.35331432]
[1767884637055,1.09764273,3069.9,3068.5,0.09443793]
[1767884637252,1.09764273,3069.9,3068.6,3.25880635]
[1767884637425,1.09764273,3069.9,3068.6,4.10880635]
[1767884637628,1.09764273,3069.9,3068.2,3.25917189]
[1767884637826,1.09764273,3069.9,3068.3,4.20356258]
[1767884637827,1.13836066,3069.9,3068.3,4.20356258]
[1767884638148,1.09764273,3069.7,3068.4,0.42035626]
[1767884638466,1.09764273,3069.2,3067.1,0.09443793]
[1767884638626,1.09764273,3069.0,3067.2,0.85845754]
[1767884638830,0.89372855,3069.1,3067.3,3.35463419]
[1767884638831,1.09764273,3068.8,3067.3,3.35463419]
[1767884639133,0.0407312,3068.9,3067.4,0.42976615]
[1767884639134,6.51741778,3068.7,3067.4,0.42976615]
[1767884639350,6.51741778,3068.7,3067.2,4.11022189]
[1767884639351,1.09764273,3068.6,3067.2,4.11022189]
[1767884639550,1.09764273,3068.6,3067.2,3.26022189]
[1767884639747,1.09764273,3068.4,3067.3,3.26018689]
[1767884639953,1.09764273,3068.4,3067.1,0.94443793]
[1767884640277,1.09764273,3068.4,3066.7,0.09443793]
[1767884640479,1.09764273,3068.2,3066.8,0.85]
[1767884640678,1.09764273,3068.2,3066.7,3.35520659]
[1767884640966,1.09764273,3068.2,3066.9,0.09443793]
[1767884641153,1.09764273,3068.5,3067.1,0.09443793]
[1767884641331,1.13837924,3068.5,3066.9,3.26060128]
[1767884641724,1.09764273,3068.3,3066.3,0.002]
[1767884641951,16.29354445,3068.7,3066.4,0.09443793]
[1767884641952,1.09764273,3068.0,3066.4,0.09443793]
[1767884642269,1.09764273,3068.0,3066.9,3.26062147]
[1767884642470,1.09764273,3068.0,3067.0,0.33550594]
[1767884642628,1.09764273,3068.0,3067.0,0.42994387]
[1767884642828,1.09764273,3068.0,3067.2,0.09443793]
[1767884643030,1.0464413,3068.6,3067.2,3.26030255]
[1767884643231,6.51784258,3068.5,3067.2,0.00846349]
[1767884643426,1.0464413,3068.3,3067.2,0.36987565]
[1767884643673,1.0464413,3068.3,3067.3,0.09443793]
[1767884644664,1.0464413,3068.1,3067.2,0.36987565]
[1767884644827,1.0464413,3068.1,3067.3,0.00846321]
[1767884645033,6.51784258,3068.5,3067.3,0.00846321]
[1767884645034,3.25912326,3068.4,3067.4,3.3545279]
[1767884645269,1.06432922,3068.3,3067.1,0.09443793]
[1767884645473,1.02359005,3068.3,3067.1,4.11034648]
[1767884645680,1.02359005,3068.3,3067.3,3.26019626]
[1767884645954,1.06433054,3068.2,3067.2,0.50547258]
[1767884646100,1.02359005,3068.2,3067.3,6.52038348]
[1767884646395,0.001,3067.7,3067.2,0.09443793]
[1767884646761,0.001,3067.7,3067.2,3.35472774]
[1767884647176,1.02359005,3068.2,3067.2,3.35472774]
[1767884647177,1.02359005,3068.2,3067.2,0.09443793]
[1767884647387,1.02359005,3068.2,3067.2,6.61502236]
[1767884647569,4.28290558,3068.2,3067.3,0.74650224]
[1767884647768,1.02359005,3068.1,3067.0,0.85]
[1767884648003,1.02359005,3068.1,3067.1,3.35477984]
[1767884648298,1.02359005,3068.1,3067.1,0.09443793]
[1767884648458,1.02359005,3068.1,3067.2,3.26028914]
[1767884648659,1.02359005,3068.1,3067.2,3.26030223]
[1767884648879,1.02359005,3068.1,3067.3,0.33547402]
[1767884649075,3.25945241,3068.0,3067.3,0.33547402]
[1767884649399,1.02359005,3068.8,3067.3,3.26018546]
[1767884649706,1.02359005,3068.7,3067.5,0.09443793]
[1767884650196,1.02359005,3068.7,3067.3,3.35462339]
[1767884650399,9.77548956,3068.9,3067.4,0.66149188]
[1767884650400,1.02359005,3068.5,3067.4,0.66149188]
[1767884650565,9.77548956,3068.9,3067.2,3.26027454]
[1767884650566,1.02359005,3068.3,3067.2,0.85]
[1767884650765,1.02359005,3068.3,3066.8,0.09443793]
[1767884650766,1.02359005,3068.1,3066.8,0.09443793]
[1767884650962,1.02359005,3068.1,3066.9,3.35499526]
[1767884651194,4.28304246,3068.0,3066.9,4.20499526]
[1767884651402,1.02359005,3068.0,3066.9,7.46561673]
[1767884651566,1.02359005,3068.0,3067.1,0.09443793]
[1767884652296,0.04074315,3068.0,3067.1,0.09443793]
[1767884652505,1.0643332,3068.0,3067.0,0.74656167]
[1767884652973,1.02359005,3068.0,3066.9,3.26061769]
[1767884653179,3.25955865,3067.9,3066.9,3.26909272]
[1767884653387,7.54143263,3068.5,3067.2,0.09443793]
[1767884653586,7.54143263,3068.5,3067.4,0.09443793]
[1767884653779,4.28251134,3068.5,3067.4,0.09443793]
[1767884653995,4.28251134,3068.5,3067.6,0.09443793]
[1767884654208,4.28251134,3068.5,3067.2,0.09443793]
[1767884654209,1.02359005,3068.4,3067.2,0.09443793]
[1767884654494,1.02359005,3068.4,3067.3,0.85]
[1767884654990,1.02359005,3068.3,3067.1,0.85]
[1767884655307,1.02359005,3069.0,3067.6,0.09443793]
[1767884655488,5.69861914,3071.7,3068.2,0.09443793]
[1767884655489,1.02359005,3070.0,3068.2,0.09443793]
[1767884655688,1.02359005,3069.8,3068.2,0.09443793]
[1767884655879,1.02359005,3069.8,3068.4,0.09443793]
[1767884656207,1.02359005,3069.8,3068.6,0.09443793]
[1767884656369,1.02359005,3069.8,3068.8,0.09443793]
[1767884656905,1.02359005,3069.8,3069.0,0.09443793]
[1767884657201,0.853,3070.2,3069.0,0.09443793]
[1767884657202,1.02359005,3070.8,3069.2,0.09443793]
[1767884657402,1.02359005,3070.6,3069.4,0.09443793]
[1767884657710,1.01281074,3070.6,3069.4,0.09443793]
[1767884658424,1.01281074,3070.6,3069.6,0.09443793]
[1767884658706,1.01281074,3070.6,3069.8,0.09443793]
[1767884659005,0.853,3070.8,3068.8,0.09443793]
[1767884659006,1.02359005,3070.4,3068.8,0.09443793]
[1767884659308,1.02359005,3070.0,3068.6,0.09443793]
[1767884659470,9.77166867,3070.1,3068.4,0.09443793]
[1767884659471,1.02359005,3069.8,3068.4,0.09443793]
[1767884660070,1.02359005,3069.8,3068.6,0.09443793]
[1767884660400,1.02359005,3069.8,3068.6,3.35321817]
[1767884660591,1.02359005,3069.8,3068.6,0.09443793]
[1767884661113,1.02359005,3069.8,3068.4,0.09443793]
[1767884661412,1.02359005,3069.5,3068.2,0.09443793]
[1767884661608,6.5155069,3069.6,3068.2,3.35366747]
[1767884661609,1.02359005,3069.3,3068.2,3.35366747]
[1767884661937,1.02359005,3069.3,3068.2,0.09443793]
[1767884662215,1.05587696,3069.2,3067.8,3.3540583]
[1767884662394,1.05587696,3069.2,3067.7,0.85]
[1767884662395,1.05587696,3069.2,3067.7,4.20412456]
[1767884662570,1.02359005,3069.0,3067.7,1.71792504]
[1767884662775,1.02359005,3069.0,3068.1,0.09443793]
[1767884663024,1.02359005,3069.0,3068.1,3.35376895]
[1767884663171,3.25807187,3069.3,3068.3,0.09443793]
[1767884663509,4.28159385,3069.4,3068.5,0.09443793]
[1767884663821,1.02359005,3069.3,3068.5,0.76514908]
[1767884664122,1.02359005,3069.3,3068.6,0.09443793]
[1767884664584,1.02359005,3069.3,3068.5,0.67071115]
[1767884665221,1.02359005,3069.3,3068.6,0.09443793]
[1767884665428,1.02359005,3069.5,3068.6,3.35322448]
[1767884665745,1.02359005,3069.5,3068.5,3.25885134]
[1767884666044,1.02359005,3069.3,3067.9,0.09443793]
[1767884666223,1.02359005,3069.3,3068.2,0.09443793]
[1767884666421,1.02359005,3069.1,3068.1,3.35372883]
[1767884666727,1.02359005,3069.1,3068.1,0.76520762]
[1767884667125,1.02359005,3069.1,3068.2,3.35364838]
[1767884667323,4.2819804,3069.0,3068.2,0.09443793]
[1767884667639,1.02359005,3068.9,3067.9,3.35391984]
[1767884667843,1.02359005,3068.9,3067.9,3.35397929]
[1767884668010,1.02359005,3068.9,3067.9,3.35397107]
[1767884668544,1.02359005,3068.9,3068.1,3.25928205]
[1767884668708,1.02359005,3068.9,3068.2,3.25922762]
[1767884669124,3.25822624,3069.2,3068.3,0.12135355]
[1767884669324,4.28168083,3069.3,3068.3,3.35348033]
[1767884669514,1.02359005,3069.2,3068.3,3.60652579]
[1767884670017,1.02359005,3069.2,3068.4,0.09443793]
[1767884670417,1.02359005,3069.6,3068.6,0.09443793]
[1767884670721,3.2566242,3070.7,3068.6,0.09443793]
[1767884670722,1.02359005,3070.1,3069.3,0.09443793]
[1767884670945,1.02359005,3070.1,3069.2,0.09443793]
[1767884671127,1.02359005,3070.1,3069.1,0.09443793]
[1767884671337,1.02359005,3069.7,3068.8,0.09443793]
[1767884671524,1.02359005,3069.6,3068.8,0.09443793]
[1767884671847,1.02359005,3069.6,3068.8,3.35303707]
[1767884672053,1.02359005,3069.6,3068.8,0.09443793]
[1767884672341,1.02359005,3069.6,3068.7,3.2586665]
[1767884672342,1.02359005,3069.6,3068.6,0.09443793]
[1767884672509,0.99360825,3069.5,3068.6,0.09443793]
[1767884672711,0.99360825,3069.5,3068.8,3.35302994]
[1767884672911,0.99360825,3069.5,3068.8,0.09443793]
[1767884673312,0.99360825,3069.5,3068.8,3.35301919]
[1767884673632,0.99360825,3069.5,3068.8,3.35300989]
[1767884674015,0.99360825,3069.5,3068.2,0.002]
[1767884674016,0.99360825,3069.4,3068.2,0.002]
[1767884674232,0.99360825,3069.1,3067.9,0.002]
[1767884674437,1.02589516,3069.1,3067.9,0.002]
[1767884674740,0.99360825,3068.7,3067.9,0.002]
[1767884674949,0.99360825,3068.5,3067.9,0.002]
[1767884675739,0.99360825,3068.3,3067.9,0.002]
[1767884676327,0.99360825,3068.3,3067.1,0.002]
[1767884677335,0.99360825,3068.2,3067.1,0.002]
[1767884677538,0.99360825,3067.8,3067.1,0.002]
[1767884678515,6.5191173,3067.9,3067.1,0.002]
[1767884678516,0.853,3067.9,3067.1,0.002]
[1767884678719,3.25928087,3068.2,3067.1,0.002]
[1767884678959,0.99360825,3068.0,3067.1,0.002]
[1767884679315,0.49360825,3068.0,3067.1,0.002]
[1767884679723,4.2531669,3067.9,3067.1,0.002]
[1767884680171,4.2531669,3067.9,3067.1,0.09643793]
[1767884680834,0.99360825,3068.5,3067.1,0.09643793]
[1767884681039,0.99360825,3068.5,3067.3,0.09443793]
[1767884681040,0.853,3068.4,3067.3,0.09443793]
[1767884681255,0.853,3068.4,3067.5,0.09443793]
[1767884681856,0.853,3068.3,3067.3,3.35460016]
[1767884682035,0.853,3068.3,3067.5,0.09443793]
[1767884682537,0.853,3068.3,3067.4,0.33546002]
[1767884683327,1.84660825,3068.3,3067.3,0.09443793]
[1767884683861,3.25923994,3068.2,3067.3,0.09443793]
[1767884684259,3.2578923,3069.5,3067.3,3.35459006]
[1767884684554,0.99360825,3069.2,3068.1,0.09443793]
[1767884684946,0.99360825,3069.2,3068.3,0.09443793]
[1767884685128,0.853,3069.2,3068.6,0.09443793]
[1767884685335,0.99360825,3070.0,3069.0,0.09443793]
[1767884685635,0.99360825,3070.0,3069.2,0.09443793]
[1767884685941,0.001,3070.8,3069.8,0.09443793]
[1767884686145,0.001,3070.8,3069.6,0.09443793]
[1767884686146,0.99360825,3070.7,3069.6,0.09443793]
[1767884686449,0.99360825,3070.5,3069.6,0.439119]
[1767884686655,0.99360825,3070.5,3070.0,0.05344661]
[1767884687050,6.51400708,3070.8,3070.0,0.05344661]
[1767884687228,1.02589516,3070.7,3069.6,0.34468107]
[1767884687432,1.07964289,3070.6,3069.1,3.25823965]
[1767884687657,0.853,3070.5,3069.2,3.35252407]
[1767884688066,0.99360825,3070.3,3069.2,0.09443793]
[1767884688248,1.02589516,3070.2,3068.8,3.35300838]
[1767884688457,1.02589516,3070.2,3069.0,0.09443793]
[1767884688458,0.99360825,3070.2,3069.0,0.09443793]
[1767884688958,1.02589516,3070.2,3069.0,0.09443793]
[1767884689148,0.99360825,3070.2,3069.0,0.09443793]
[1767884689662,3.2575412,3070.8,3069.5,0.09443793]
[1767884689663,0.001,3070.8,3069.5,0.09443793]
[1767884689864,0.853,3070.6,3069.5,0.09443793]
[1767884690053,3.25751719,3070.8,3069.7,0.09443793]